fUSD/lending_fUSD_20240520
["ID","MTS","AMOUNT","RATE_DAILY","PERIOD"]
[327571405,1716238258353,-287.534162,0.00039973,14]
[327571406,1716238258363,-648.860738,0.00039973,14]
[327571407,1716238258373,-151.0,0.00039973,14]
[327571408,1716238258383,-151.0,0.00039973,14]
[327571409,1716238258393,-648.860738,0.00039973,14]
[327571410,1716238258403,-151.0,0.00039973,14]
[327571411,1716238258418,-151.0,0.00039973,14]
[327571412,1716238258428,-155.883838,0.00039973,14]
[327571413,1716238258437,-155.883838,0.00039973,14]
[327571414,1716238258448,-348.368327,0.00039973,14]
[327571415,1716238258459,-348.368327,0.00039973,14]
[327571416,1716238258469,-151.0,0.00039973,14]
[327571417,1716238258478,-151.0,0.00039973,14]
[327571418,1716238258488,-151.0,0.00039973,14]
[327571419,1716238258498,-151.0,0.00039973,14]
[327571420,1716238258508,-151.0,0.00039973,14]
[327571421,1716238258517,-151.0,0.00039973,14]
[327571422,1716238258526,-153.533141,0.00039973,14]
[327571423,1716238258536,-299.456999,0.00039973,14]
[327571424,1716238258545,-299.456999,0.00039973,14]
[327571425,1716238258554,-153.533141,0.00039973,14]
[327571426,1716238258564,-151.0,0.00039973,14]
[327571427,1716238258574,-151.0,0.00039973,14]
[327571428,1716238258583,-151.0,0.00039973,14]
[327571429,1716238258593,-299.860395,0.00039973,14]
[327571430,1716238258602,-299.860395,0.00039973,14]
[327571431,1716238258612,-151.0,0.00039973,14]
[327571432,1716238258621,-151.0,0.00039973,14]
[327571433,1716238258631,-151.0,0.00039973,14]
[327571434,1716238258640,-207.746214,0.00039973,14]
[327571435,1716238258649,-151.0,0.00039973,14]
[327571436,1716238258659,-1860.3143481,0.00039973,2]
[327571437,1716238258668,-3791.8776159,0.00039973,2]
[327571438,1716238258678,-858.39461711,0.0003998,30]
[327571439,1716238258687,-245.32968043,0.0003998,30]
[327571440,1716238258696,-3278.07762115,0.0003999,2]
[327571441,1716238258706,-151.0,0.0003999,14]
[327571442,1716238258715,-151.0,0.0003999,14]
[327571443,1716238258725,-151.0,0.0003999,14]
[327571444,1716238258736,-151.0,0.0003999,14]
[327571445,1716238258746,-272.32492983,0.0003999,14]
[327571446,1716238258756,-271.501696,0.0003999,14]
[327571447,1716238258765,-151.0,0.0003999,14]
[327571448,1716238258775,-155.642765,0.0003999,14]
[327571449,1716238258784,-155.642765,0.0003999,14]
[327571450,1716238258794,-151.0,0.0003999,14]
[327571451,1716238258803,-523.471196,0.0003999,14]
[327571452,1716238258813,-523.471196,0.0003999,14]
[327571453,1716238258822,-50000.0,0.0004,20]
[327571454,1716238258832,-50000.0,0.0004,30]
[327571455,1716238258841,-10000.0,0.0004,2]
[327571456,1716238258852,-155.0,0.0004,15]
[327571457,1716238258862,-155.0,0.0004,15]
[327571458,1716238258872,-7675.15405211,0.0004,4]
[327571459,1716238258883,-1502.62188175,0.0004,2]
[327571460,1716238258893,-193.56143736,0.0004,2]
[327571461,1716238258904,-2999.99,0.0004,2]
[327571462,1716238258916,-3003.01,0.0004,2]
[327571463,1716238258926,-3000.0,0.0004,2]
[327571464,1716238258938,-3000.0,0.0004,2]
[327571465,1716238258947,-3000.0,0.0004,2]
[327571466,1716238258957,-853.34,0.0004,2]
[327571467,1716238258968,-1806.47773037,0.0004,4]
[327571468,1716238258977,-250.19605282,0.0004,2]
[327571469,1716238258988,-620.35361011,0.0004,2]
[327571470,1716238258997,-1191.09117161,0.0004,10]
[327571471,1716238259007,-3277.82051963,0.0004,30]
[327571472,1716238259017,-1800.0,0.0004,60]
[327571473,1716238259028,-500.0,0.0004,120]
[327571474,1716238259039,-350.0,0.0004,30]
[327571475,1716238259050,-423.0,0.0004,120]
[327571476,1716238259061,-5097.0,0.0004,8]
[327571477,1716238259072,-1536.92468,0.0004,2]
[327571478,1716238259081,-2486.52355247,0.0004,15]
[327571479,1716238259091,-10000.0,0.0004,30]
[327571480,1716238259101,-1039.64968366,0.0004,14]
[327571481,1716238259110,-275.0,0.0004,120]
[327571482,1716238259119,-150.79,0.0004,120]
[327571483,1716238259129,-23509.37,0.0004,120]
[327571484,1716238259139,-500.0,0.0004,90]
[327571485,1716238259148,-2000.0,0.0004,5]
[327571486,1716238259160,-2000.0,0.0004,5]
[327571487,1716238259169,-1000.0,0.0004,30]
[327571488,1716238259179,-500.0,0.0004,2]
[327571489,1716238259188,-155.32549696,0.0004,4]
[327571490,1716238259198,-701.05523382,0.0004,4]
[327571491,1716238259208,-217.25085068,0.0004,30]
[327571492,1716238259219,-2864.99003339,0.0004,20]
[327571493,1716238259232,-617.89431602,0.0004,120]
[327571494,1716238259242,-10715.04023783,0.0004,120]
[327571495,1716238259271,-2301.57076875,0.0004,120]
[327571496,1716238259292,-815.78149358,0.0004,120]
[327571497,1716238259301,-494.10816527,0.0004,3]
[327571498,1716238259312,-235.25702597,0.0004,30]
[327571499,1716238259321,-2110.0,0.0004,15]
[327571500,1716238259331,-500012.9477635,0.0004,2]
[327571501,1716238259341,-20982.58,0.0004,120]
[327571502,1716238259351,-500.0,0.0004,120]
[327571503,1716238259362,-5587.52,0.0004,30]
[327571504,1716238259374,-900.0,0.0004,41]
[327571505,1716238259383,-500.0,0.0004,120]
[327571506,1716238259393,-1500.77338942,0.0004,2]
[327571507,1716238259402,-971.6776868,0.0004,120]
[327571508,1716238259414,-500.00000099,0.0004,5]
[327571509,1716238259429,-834.52,0.0004,120]
[327571510,1716238259439,-22206.73478281,0.0004,4]
[327571511,1716238259449,-11889.24589378,0.0004,30]
[327571512,1716238259459,-151.0,0.0004,14]
[327571513,1716238259469,-151.0,0.0004,14]
[327571514,1716238259478,-255.673828,0.0004,14]
[327571515,1716238259488,-151.0,0.0004,14]
[327571516,1716238259500,-309.544549,0.0004,14]
[327571517,1716238259510,-258.247831,0.0004,14]
[327571518,1716238259520,-151.0,0.0004,14]
[327571519,1716238259530,-309.544549,0.0004,14]
[327571520,1716238259540,-151.0,0.0004,14]
[327571521,1716238259551,-258.247831,0.0004,14]
[327571522,1716238259563,-151.0,0.0004,14]
[327571523,1716238259573,-151.0,0.0004,14]
[327571524,1716238259584,-324.726006,0.0004,14]
[327571525,1716238259595,-324.726006,0.0004,14]
[327571526,1716238259605,-758.851273,0.0004,14]
[327571527,1716238259615,-151.0,0.0004,14]
[327571528,1716238259625,-758.851273,0.0004,14]
[327571529,1716238259635,-151.0,0.0004,14]
[327571530,1716238259645,-151.0,0.0004,14]
[327571531,1716238259656,-391.12842448,0.0004001,30]
[327571532,1716238259667,-300.0,0.00040077,120]
[327571533,1716238259676,-1000.0,0.000401,4]
[327571534,1716238259687,-532.0,0.00040101,20]
[327571535,1716238259699,-314.052016,0.00040148,46]
[327571536,1716238259708,-151.0,0.0004019,2]
[327571537,1716238259718,-11023.64583881,0.000402,120]
[327571538,1716238259728,-11023.64583877,0.000402,120]
[327571539,1716238259740,-11023.64583877,0.000402,120]
[327571540,1716238259751,-11023.64583877,0.000402,120]
[327571541,1716238259760,-11023.64583877,0.000402,120]
[327571542,1716238259770,-153.82,0.00040208,2]
[327571543,1716238259780,-829.86,0.00040208,2]
[327571544,1716238259790,-723.43,0.00040208,2]
[327571545,1716238259800,-150.0,0.00040303,2]
[327571546,1716238259810,-19586.89438401,0.00040317,14]
[327571547,1716238259820,-271.33791023,0.000404,10]
[327571548,1716238259829,-9809.80298386,0.0004041,7]
[327571549,1716238259839,-3246.02484438,0.0004041,7]
[327571550,1716238259848,-698.4335131,0.0004041,7]
[327571551,1716238259857,-1967.4175818,0.0004041,7]
[327571552,1716238259866,-314.052016,0.00040448,46]
[327571553,1716238259876,-459.54659753,0.0004048,60]
[327571554,1716238259887,-660.39,0.000405,15]
[327571555,1716238259896,-539.58707769,0.00040506,20]
[327571556,1716238259906,-868.59115763,0.00040506,20]
[327571557,1716238259915,-532.0,0.00040506,20]
[327571558,1716238259924,-1120.10909046,0.00040506,20]
[327571559,1716238259933,-150.0,0.0004052,10]
[327571560,1716238259943,-314.052016,0.00040648,50]
[327571561,1716238259952,-150.0,0.00040666,7]
[327571562,1716238259961,-314.052016,0.00040748,46]
[327571563,1716238259971,-988.0,0.00040758,18]
[327571564,1716238259981,-300.0,0.00040806,120]
[327571565,1716238259991,-9809.80298386,0.00040859,7]
[327571566,1716238260000,-3246.02484438,0.00040859,7]
[327571567,1716238260010,-698.4335131,0.00040859,7]
[327571568,1716238260020,-1967.4175818,0.00040859,7]
[327571569,1716238260029,-302.0,0.00040866,4]
[327571570,1716238260040,-532.0,0.00040911,20]
[327571571,1716238260051,-50000.0,0.00041,21]
[327571572,1716238260063,-50000.0,0.00041,31]
[327571573,1716238260080,-500.0,0.00041,120]
[327571574,1716238260106,-350.0,0.00041,30]
[327571575,1716238260131,-20099.98105655,0.00041,7]
[327571576,1716238260146,-1374.79624723,0.00041,120]
[327571577,1716238260162,-581.78,0.00041,120]
[327571578,1716238260179,-222.03620266,0.00041,60]
[327571579,1716238260195,-39597.99884308,0.00041,30]
[327571580,1716238261273,-471.845673,0.00036035,7]
[327571581,1716238261286,-2635.10822306,0.00041,30]
[327571582,1716238261298,-3745.16216838,0.00041,2]
[327571583,1716238261312,-3097.70627763,0.00041,2]
[327571584,1716238261328,-8200.61075397,0.00041,2]
[327571585,1716238261341,-2250.0,0.00041,2]
[327571586,1716238261352,-151.0,0.00041,14]
[327571587,1716238261364,-151.0,0.00041,14]
[327571588,1716238261375,-151.0,0.00041,14]
[327571589,1716238261387,-151.0,0.00041,14]
[327571590,1716238261397,-11378.27861165,0.00041031,2]
[327571591,1716238261410,-2617.54872489,0.00041087,2]
[327571592,1716238261422,-1447.93,0.00041095,2]
[327571593,1716238261433,-7010.03517629,0.00041096,7]
[327571594,1716238261445,-29519.1392363,0.00041096,7]
[327571595,1716238261455,-2002.62741393,0.00041096,7]
[327571596,1716238261466,-10608.1315661,0.00041096,7]
[327571597,1716238261478,-300.0,0.00041096,10]
[327571598,1716238261491,-300.0,0.00041096,10]
[327571599,1716238261503,-300.0,0.00041096,10]
[327571600,1716238261515,-300.0,0.00041096,10]
[327571601,1716238261526,-300.0,0.00041096,10]
[327571602,1716238261537,-300.0,0.00041096,10]
[327571603,1716238261547,-301.93595131,0.00041096,10]
[327571604,1716238261559,-300.0,0.00041096,10]
[327571605,1716238261570,-300.0,0.00041096,10]
[327571606,1716238261581,-300.0,0.00041096,10]
[327571607,1716238261592,-300.0,0.00041096,10]
[327571608,1716238261603,-300.0,0.00041096,10]
[327571609,1716238261614,-300.0,0.00041096,10]
[327571610,1716238261625,-300.0,0.00041096,10]
[327571611,1716238261636,-300.0,0.00041096,10]
[327571612,1716238261648,-314.634031,0.00041096,10]
[327571613,1716238261661,-300.0,0.00041096,10]
[327571614,1716238261674,-300.0,0.00041096,10]
[327571615,1716238261687,-300.0,0.00041096,10]
[327571616,1716238261700,-300.0,0.00041096,10]
[327571617,1716238261713,-300.0,0.00041096,10]
[327571618,1716238261726,-300.0,0.00041096,10]
[327571619,1716238261742,-300.0,0.00041096,10]
[327571620,1716238261755,-300.0,0.00041096,10]
[327571621,1716238261768,-300.0,0.00041096,10]
[327571622,1716238261783,-300.0,0.00041096,10]
[327571623,1716238261796,-500.0,0.00041096,6]
[327571624,1716238261808,-500.0,0.00041096,6]
[327571625,1716238261820,-500.0,0.00041096,6]
[327571626,1716238261833,-500.0,0.00041096,6]
[327571627,1716238261846,-500.0,0.00041096,6]
[327571628,1716238261860,-500.0,0.00041096,6]
[327571629,1716238261871,-500.0,0.00041096,6]
[327571630,1716238261882,-500.0,0.00041096,6]
[327571631,1716238261894,-500.0,0.00041096,6]
[327571632,1716238261905,-500.0,0.00041096,6]
[327571633,1716238261915,-500.0,0.00041096,6]
[327571634,1716238262243,-500.0,0.00041096,6]
[327571635,1716238262283,-500.0,0.00041096,6]
[327571636,1716238262300,-500.0,0.00041096,6]
[327571637,1716238262310,-500.0,0.00041096,6]
[327571638,1716238262319,-500.0,0.00041096,6]
[327571639,1716238262329,-500.0,0.00041096,6]
[327571640,1716238262339,-500.0,0.00041096,6]
[327571641,1716238262348,-500.0,0.00041096,6]
[327571642,1716238262357,-500.0,0.00041096,6]
[327571643,1716238262366,-500.0,0.00041096,6]
[327571644,1716238262376,-500.0,0.00041096,6]
[327571645,1716238262385,-500.0,0.00041096,6]
[327571646,1716238262394,-500.0,0.00041096,6]
[327571647,1716238262404,-500.0,0.00041096,6]
[327571648,1716238262414,-500.0,0.00041096,6]
[327571649,1716238262427,-500.0,0.00041096,6]
[327571650,1716238262436,-500.0,0.00041096,6]
[327571651,1716238262446,-500.0,0.00041096,6]
[327571652,1716238262455,-500.0,0.00041096,6]
[327571653,1716238262467,-500.0,0.00041096,6]
[327571654,1716238262476,-500.0,0.00041096,6]
[327571655,1716238262488,-500.0,0.00041096,6]
[327571656,1716238262497,-500.0,0.00041096,6]
[327571657,1716238262511,-500.0,0.00041096,6]
[327571658,1716238262521,-500.0,0.00041096,6]
[327571659,1716238262530,-500.0,0.00041096,6]
[327571660,1716238262539,-500.0,0.00041096,6]
[327571661,1716238262548,-500.0,0.00041096,6]
[327571662,1716238262558,-500.0,0.00041096,6]
[327571663,1716238262568,-500.0,0.00041096,6]
[327571664,1716238262578,-500.0,0.00041096,6]
[327571665,1716238262587,-500.0,0.00041096,6]
[327571666,1716238262596,-500.0,0.00041096,6]
[327571667,1716238262606,-500.0,0.00041096,6]
[327571668,1716238262615,-500.0,0.00041096,6]
[327571669,1716238262624,-500.0,0.00041096,6]
[327571670,1716238262633,-500.0,0.00041096,6]
[327571671,1716238262642,-500.0,0.00041096,6]
[327571672,1716238262652,-500.0,0.00041096,6]
[327571673,1716238262661,-500.0,0.00041096,6]
[327571674,1716238262670,-500.0,0.00041096,6]
[327571675,1716238262679,-500.0,0.00041096,6]
[327571676,1716238262688,-500.0,0.00041096,6]
[327571677,1716238262698,-500.0,0.00041096,6]
[327571678,1716238262707,-500.0,0.00041096,6]
[327571679,1716238262716,-500.0,0.00041096,6]
[327571680,1716238262726,-456.0,0.00041096,6]
[327571681,1716238262738,-154.16,0.00041096,2]
[327571682,1716238262747,-157.0,0.00041096,2]
[327571683,1716238262756,-4000.0,0.00041096,30]
[327571684,1716238262765,-151.0,0.00041096,14]
[327571685,1716238262774,-151.0,0.00041096,7]
[327571686,1716238262784,-171.417707,0.00041096,14]
[327571687,1716238262792,-151.0,0.00041096,14]
[327571688,1716238262802,-151.0,0.00041096,14]
[327571689,1716238262811,-151.0,0.00041096,14]
[327571690,1716238262820,-151.0,0.00041096,14]
[327571691,1716238262829,-353.881301,0.00041096,14]
[327571692,1716238262838,-352.43775,0.00041096,14]
[327571693,1716238262847,-151.0,0.00041096,14]
[327571694,1716238262856,-151.0,0.00041096,14]
[327571695,1716238262865,-204.842037,0.00041096,14]
[327571696,1716238262874,-204.842037,0.00041096,14]
[327571697,1716238262883,-151.0,0.00041096,2]
[327571698,1716238262893,-151.0,0.00041096,14]
[327571699,1716238262902,-151.0,0.00041096,14]
[327571700,1716238262911,-151.0,0.00041096,14]
[327571701,1716238262920,-500.0,0.00041096,2]
[327571702,1716238262929,-151.0,0.00041096,14]
[327571703,1716238262938,-151.0,0.00041096,14]
[327571704,1716238262948,-151.0,0.00041096,14]
[327571705,1716238262957,-648.860738,0.00041096,14]
[327571706,1716238262967,-160.465279,0.00041096,14]
[327571707,1716238262976,-151.0,0.00041096,14]
[327571708,1716238262988,-648.860738,0.00041096,14]
[327571709,1716238262996,-151.0,0.00041096,14]
[327571710,1716238263005,-151.0,0.00041096,14]
[327571711,1716238263014,-155.883838,0.00041096,14]
[327571712,1716238263023,-155.883838,0.00041096,14]
[327571713,1716238263033,-348.368327,0.00041096,14]
[327571714,1716238263041,-348.368327,0.00041096,14]
[327571715,1716238263051,-151.0,0.00041096,14]
[327571716,1716238263060,-151.0,0.00041096,14]
[327571717,1716238263069,-151.0,0.00041096,14]
[327571718,1716238263079,-151.0,0.00041096,14]
[327571719,1716238263088,-151.0,0.00041096,14]
[327571720,1716238263097,-151.0,0.00041096,14]
[327571721,1716238263106,-153.533141,0.00041096,14]
[327571722,1716238263116,-299.456999,0.00041096,14]
[327571723,1716238263125,-299.456999,0.00041096,14]
[327571724,1716238263135,-153.533141,0.00041096,14]
[327571725,1716238263144,-151.0,0.00041096,14]
[327571726,1716238263153,-151.0,0.00041096,14]
[327571727,1716238263163,-151.0,0.00041096,14]
[327571728,1716238263172,-299.860395,0.00041096,14]
[327571729,1716238263181,-299.860395,0.00041096,14]
[327571730,1716238263190,-151.0,0.00041096,14]
[327571731,1716238263200,-152.458043,0.00041096,14]
[327571732,1716238263210,-151.0,0.00041096,14]
[327571733,1716238263219,-151.0,0.00041096,14]
[327571734,1716238263229,-151.0,0.00041096,14]
[327571735,1716238263241,-309.544549,0.00041096,14]
[327571736,1716238263251,-258.247831,0.00041096,14]
[327571737,1716238263260,-151.0,0.00041096,14]
[327571738,1716238263270,-309.544549,0.00041096,14]
[327571739,1716238263279,-154.720197,0.00041096,14]
[327571740,1716238263288,-258.247831,0.00041096,14]
[327571741,1716238263298,-157.721058,0.00041096,14]
[327571742,1716238263307,-151.0,0.00041096,14]
[327571743,1716238263316,-324.726006,0.00041096,14]
[327571744,1716238263326,-324.726006,0.00041096,14]
[327571745,1716238263336,-758.851273,0.00041096,14]
[327571746,1716238263345,-151.0,0.00041096,14]
[327571747,1716238263354,-758.851273,0.00041096,14]
[327571748,1716238263364,-151.0,0.00041096,14]
[327571749,1716238263374,-151.0,0.00041096,14]
[327571750,1716238263383,-151.0,0.00041096,14]
[327571751,1716238263393,-151.0,0.00041096,14]
[327571752,1716238263403,-151.0,0.00041096,14]
[327571753,1716238263418,-153.081288,0.00041096,14]
[327571754,1716238263436,-155.642765,0.00041096,14]
[327571755,1716238263446,-155.642765,0.00041096,14]
[327571756,1716238263455,-151.0,0.00041096,14]
[327571757,1716238263465,-153.365737,0.00041096,14]
[327571758,1716238263473,-523.471196,0.00041096,14]
[327571759,1716238263483,-2606.193622,0.00041096,14]
[327571760,1716238263494,-523.471196,0.00041096,14]
[327571761,1716238263503,-2606.193622,0.00041096,14]
[327571762,1716238263512,-151.0,0.00041096,14]
[327571763,1716238263521,-151.0,0.00041096,14]
[327571764,1716238263531,-151.0,0.00041096,14]
[327571765,1716238263541,-151.0,0.00041096,14]
[327571766,1716238263551,-205.222801,0.00041096,14]
[327571767,1716238263560,-205.222801,0.00041096,14]
[327571768,1716238263569,-151.0,0.00041096,14]
[327571769,1716238263579,-1032.12148,0.00041096,14]
[327571770,1716238263588,-459.884371,0.00041096,14]
[327571771,1716238263597,-459.884371,0.00041096,14]
[327571772,1716238263606,-1032.12148,0.00041096,14]
[327571773,1716238263616,-276.847444,0.00041096,14]
[327571774,1716238263625,-276.847444,0.00041096,14]
[327571775,1716238263634,-151.0,0.00041096,14]
[327571776,1716238263643,-342.878346,0.00041096,14]
[327571777,1716238263653,-342.878346,0.00041096,14]
[327571778,1716238263662,-151.0,0.00041096,14]
[327571779,1716238263671,-151.0,0.00041096,14]
[327571780,1716238263680,-14048.42415661,0.000411,60]
[327571781,1716238263689,-151.0,0.000411,14]
[327571782,1716238263698,-151.0,0.000411,14]
[327571783,1716238263707,-151.0,0.000411,14]
[327571784,1716238263716,-314.052016,0.00041148,48]
[327571785,1716238263726,-314.103628,0.00041148,50]
[327571786,1716238263737,-150.0,0.0004124,2]
[327571787,1716238263747,-150.0,0.00041269,120]
[327571788,1716238263756,-161.328429,0.00041308,14]
[327571789,1716238263765,-151.0,0.00041308,14]
[327571790,1716238263775,-151.0,0.00041308,14]
[327571791,1716238263784,-151.0,0.00041308,14]
[327571792,1716238263793,-151.0,0.00041308,14]
[327571793,1716238263803,-9809.80298386,0.00041308,7]
[327571794,1716238263812,-3246.02484438,0.00041308,7]
[327571795,1716238263822,-698.4335131,0.00041308,7]
[327571796,1716238263832,-1967.4175818,0.00041308,7]
[327571797,1716238263841,-532.0,0.00041316,20]
[327571798,1716238263850,-314.052016,0.00041448,48]
[327571799,1716238263859,-300.0,0.00041534,120]
[327571800,1716238263868,-604.0,0.00041553,7]
[327571801,1716238263877,-1242.426461,0.0004158,120]
[327571802,1716238263887,-314.052018,0.00041648,50]
[327571803,1716238263896,-500.0,0.00041712,2]
[327571804,1716238263906,-532.0,0.00041721,20]
[327571805,1716238263916,-19586.89438401,0.00041744,16]
[327571806,1716238263926,-151.0,0.00041744,14]
[327571807,1716238263936,-314.052018,0.00041748,48]
[327571808,1716238263946,-9809.80298386,0.00041757,7]
[327571809,1716238263956,-3246.02484438,0.00041757,7]
[327571810,1716238263965,-698.4335131,0.00041757,7]
[327571811,1716238263974,-1967.4175818,0.00041757,7]
[327571812,1716238263986,-150.0,0.0004179,120]
[327571813,1716238263996,-558.34049211,0.000419,111]
[327571814,1716238264004,-235.00776382,0.00041971,2]
[327571815,1716238264013,-151.0,0.0004198,15]
[327571816,1716238264022,-204.0,0.0004198,15]
[327571817,1716238264031,-151.0,0.0004199,15]
[327571818,1716238264041,-204.0,0.0004199,15]
[327571819,1716238264050,-300.0,0.00041999,10]
[327571820,1716238264059,-300.0,0.00041999,10]
[327571821,1716238264068,-300.0,0.00041999,10]
[327571822,1716238264078,-300.0,0.00041999,10]
[327571823,1716238264087,-300.0,0.00041999,10]
[327571824,1716238264096,-50000.0,0.00042,22]
[327571825,1716238264105,-50000.0,0.00042,32]
[327571826,1716238264115,-55111.17576202,0.00042,2]
[327571827,1716238264124,-153.73260543,0.00042,5]
[327571828,1716238264134,-152.0,0.00042,3]
[327571829,1716238264143,-152.0,0.00042,5]
[327571830,1716238264152,-850.0,0.00042,120]
[327571831,1716238264162,-8806.22524741,0.00042,2]
[327571832,1716238264171,-500.0,0.00042,120]
[327571833,1716238264181,-350.0,0.00042,30]
[327571834,1716238264190,-2011.37873375,0.00042,30]
[327571835,1716238264200,-480.13364843,0.00042,120]
[327571836,1716238264209,-500.0,0.00042,2]
[327571837,1716238264219,-15073.82874351,0.00042,10]
[327571838,1716238264228,-563.89757588,0.00042,120]
[327571839,1716238264240,-1369.52,0.00042,120]
[327571840,1716238264249,-4910.26,0.00042,4]
[327571841,1716238264260,-4910.26,0.00042,4]
[327571842,1716238264269,-4910.26,0.00042,4]
[327571843,1716238264279,-4910.26,0.00042,4]
[327571844,1716238264288,-4910.26,0.00042,4]
[327571845,1716238264297,-4910.26,0.00042,4]
[327571846,1716238264307,-4910.26,0.00042,4]
[327571847,1716238264316,-4910.26,0.00042,4]
[327571848,1716238264326,-4910.26,0.00042,4]
[327571849,1716238264335,-4910.26,0.00042,4]
[327571850,1716238264344,-4910.26,0.00042,4]
[327571851,1716238264354,-4910.26,0.00042,4]
[327571852,1716238264363,-4910.26,0.00042,4]
[327571853,1716238264372,-4910.26,0.00042,4]
[327571854,1716238264382,-4910.26,0.00042,4]
[327571855,1716238264391,-4910.26,0.00042,4]
[327571856,1716238264401,-4910.26,0.00042,4]
[327571857,1716238264412,-4910.26,0.00042,4]
[327571858,1716238264423,-4910.26,0.00042,4]
[327571859,1716238264433,-4910.26,0.00042,4]
[327571860,1716238264442,-1306.91288502,0.0004201,2]
[327571861,1716238264451,-152.99,0.00042046,30]
[327571862,1716238264462,-219.88,0.00042048,2]
[327571863,1716238264471,-1191.65,0.000421,2]
[327571864,1716238264480,-4942.5,0.000421,2]
[327571865,1716238264493,-150.0,0.00042123,120]
[327571866,1716238264503,-988.0,0.00042128,20]
[327571867,1716238264513,-314.052018,0.00042148,52]
[327571868,1716238264522,-150.0,0.00042177,2]
[327571869,1716238264531,-9809.80298386,0.00042206,7]
[327571870,1716238264540,-3246.02484438,0.00042206,7]
[327571871,1716238264550,-698.4335131,0.00042206,7]
[327571872,1716238264559,-1967.4175818,0.00042206,7]
[327571873,1716238264569,-150.0,0.00042239,120]
[327571874,1716238264578,-300.0,0.00042263,120]
[327571875,1716238264587,-500.0,0.00042338,2]
[327571876,1716238264596,-314.052018,0.00042348,52]
[327571877,1716238264605,-314.052018,0.00042448,50]
[327571878,1716238264614,-1447.93,0.00042465,2]
[327571879,1716238264623,-300.0,0.00042499,10]
[327571880,1716238264632,-300.0,0.00042499,10]
[327571881,1716238264642,-300.0,0.00042499,10]
[327571882,1716238264651,-300.0,0.00042499,10]
[327571883,1716238264660,-300.0,0.00042499,10]
[327571884,1716238264670,-156.67184255,0.000425,2]
[327571885,1716238264679,-151.0,0.000425,14]
[327571886,1716238264689,-151.0,0.000425,7]
[327571887,1716238264698,-151.0,0.000425,14]
[327571888,1716238264709,-151.0,0.000425,14]
[327571889,1716238264719,-151.0,0.000425,14]
[327571890,1716238264729,-151.0,0.000425,14]
[327571891,1716238264740,-151.0,0.000425,14]
[327571892,1716238264749,-151.0,0.000425,14]
[327571893,1716238264759,-151.0,0.000425,14]
[327571894,1716238264768,-151.0,0.000425,14]
[327571895,1716238264779,-244.018728,0.000425,14]
[327571896,1716238264788,-353.881301,0.000425,14]
[327571897,1716238264798,-352.43775,0.000425,14]
[327571898,1716238264807,-352.43775,0.000425,14]
[327571899,1716238264817,-151.0,0.000425,14]
[327571900,1716238264826,-188.30874,0.000425,14]
[327571901,1716238264835,-204.842037,0.000425,14]
[327571902,1716238264844,-204.842037,0.000425,14]
[327571903,1716238264854,-159.734102,0.000425,2]
[327571904,1716238264863,-151.0,0.000425,14]